lending/lending_fUSD_20240711
["ID","MTS","AMOUNT","RATE_DAILY","PERIOD"]
[331702076,1720663834263,-528.97585171,0.00013879,2]
[331702077,1720663834273,-508.67850654,0.00013879,2]
[331702078,1720663834283,-616.02636014,0.00013889,2]
[331702079,1720663834292,-475.88438208,0.00013899,2]
[331702080,1720663834302,-566.48555326,0.000139,2]
[331702081,1720663834311,-1500.0,0.000139,5]
[331702082,1720663834320,-3201.71370135,0.000139,2]
[331702083,1720663834330,-500.0,0.00013934,2]
[331702084,1720663834340,-2713.28026501,0.00013978,5]
[331702085,1720663834351,-500.0,0.00013989,2]
[331702086,1720663834360,-500.0,0.00013999,2]
[331702087,1720663834369,-250.57629232,0.00013999,2]
[331702088,1720663834383,-17760.3282932,0.00013999,2]
[331702089,1720663834392,-509.10740398,0.00013999,2]
[331702090,1720663834401,-1860.52,0.00013999,2]
[331702091,1720663834410,-272.92099738,0.00013999,2]
[331702092,1720663834419,-500.0,0.00013999,2]
[331702093,1720663834429,-552.3,0.00013999,2]
[331702094,1720663834438,-514.82957396,0.00013999,2]
[331702095,1720663834447,-381.8586,0.00013999,2]
[331702096,1720663834457,-311.17933025,0.00013999,2]
[331702097,1720663834467,-1756.56,0.00013999,2]
[331702098,1720663834478,-1078.5,0.00013999,2]
[331702099,1720663834490,-500.0,0.00013999,2]
[331702100,1720663834500,-161077.8896927,0.00014,2]
[331702101,1720663834510,-204212.74414801,0.00014,2]
[331702103,1720663838750,-646.76938192,0.00014,2]
[331702119,1720663839134,-2208.23057587,0.00014,2]
[331702120,1720663839147,-4307.3259073,0.00014,2]
[331702121,1720663839160,-995.36520928,0.00014,2]
[331702122,1720663839172,-1839.93992941,0.00014,2]
[331702124,1720663839392,-1161.22,0.00014,2]
[331702231,1720663840440,-366.90967582,0.00013999,2]
[331702233,1720663840451,-5992.71543681,0.00014,2]
[331702235,1720663840464,-941.04202421,0.00014,2]
[331702239,1720663840477,-41299.39050248,0.00014,2]
[331702242,1720663840489,-3888.49741325,0.00014,2]
[331702244,1720663840500,-2084.16549808,0.00014,2]
[331702264,1720663840721,-57105.07442558,0.00014,2]
[331702267,1720663840733,-295011.3629706,0.00014,2]
[331702269,1720663840744,-2809.89847193,0.00014,2]
[331702272,1720663840761,-7020.40832236,0.00014,2]
[331702274,1720663840772,-396.05309653,0.00014,2]
[331702276,1720663840784,-857.69234347,0.00014,2]
[331702278,1720663840796,-914.57186585,0.00014,2]
[331702281,1720663840807,-95942.73161476,0.00014,2]
[331702283,1720663840820,-3779.77020261,0.00014,2]
[331702285,1720663840832,-573.37954002,0.00014,2]
[331702288,1720663840843,-525.78909216,0.00014,2]
[331702579,1720663843922,-879.46409223,0.00014,2]
[331702580,1720663843934,-518.6166398,0.00014,2]
[331702581,1720663843946,-277.22338766,0.00014,2]
[331702582,1720663843958,-586.36092673,0.00014,2]
[331702586,1720663845879,-544.77268219,0.00014,2]
[331702587,1720663845907,-6319.58947999,0.00014,2]
[331702590,1720663846917,-747.54487454,0.00014,2]
[331702591,1720663846929,-1082.16293103,0.00014,2]
[331702592,1720663846941,-4348.0950825,0.00014,2]
[331702593,1720663847168,-300.30737704,0.00014,2]
[331702596,1720663847179,-313.99159286,0.00014,2]
[331702598,1720663847191,-6134.45000001,0.00014,2]
[331702617,1720663870172,430.70869197,0.00011409,2]
[331702618,1720664283691,480.24,0.00010891,2]
[331702619,1720664527360,151.071111,0.00025,70]
[331702620,1720664535255,151.071111,0.00025,71]
[331702621,1720664538890,151.071111,0.00025,72]
[331702622,1720664543360,151.071111,0.00025,73]
[331702623,1720664547842,151.071111,0.00025,63]
[331702624,1720664551262,151.071111,0.00025,64]
[331702625,1720664553961,151.071111,0.00025,65]
[331702626,1720664557920,151.071111,0.00025,66]
[331702627,1720664567459,151.071111,0.00025,70]
[331702628,1720664590582,59507.35176536,0.00025,60]
[331702629,1720664598658,223.071111,0.00025,71]
[331702630,1720664602675,19947.42595132,0.00025,60]
[331702631,1720664792176,157.37127731,0.00011199,2]
[331702632,1720664820767,456.22,0.00011016,2]
[331702640,1720664863674,284.29826916,0.00011199,2]
[331702641,1720665033229,-163.76,0.00012724,2]
[331702642,1720665033239,-137.26081451,0.00012758,2]
[331702644,1720665033405,-162.73918549,0.00012758,2]
[331702647,1720665033416,-5315.00596374,0.00012759,2]
[331702649,1720665033428,-408.85640308,0.00012759,2]
[331702651,1720665033440,-1240.78981057,0.00012759,2]
[331702656,1720665038407,-2965.86782261,0.00012759,2]
[331702657,1720665038418,-1000.0,0.00012773,2]
[331702658,1720665038427,-250.0,0.00012778,2]
[331702659,1720665038437,-166.96,0.00012964,2]
[331702660,1720665038447,-59364.09491758,0.00013,2]
[331702661,1720665038462,-203105.38174534,0.00013,2]
[331702662,1720665038574,-484.29211093,0.00013,2]
[331702663,1720665038586,-17598.78094471,0.00013,2]
[331702664,1720665038595,-1250.0,0.00013,2]
[331702665,1720665038605,-900.0,0.000131,4]
[331702666,1720665038615,-1800.0,0.000132,4]
[331702667,1720665038625,-456.22,0.0001328,2]
[331702668,1720665038635,-2700.0,0.000133,4]
[331702669,1720665038645,-499.99,0.000134,2]
[331702670,1720665038654,-3700.0,0.000134,4]
[331702671,1720665038666,-515.0,0.00013439,2]
[331702672,1720665038676,-150.0,0.00013498,2]
[331702673,1720665038685,-641.79917067,0.00013499,2]
[331702674,1720665038698,-944.89082933,0.00013499,2]
[331702675,1720665038708,-9.24899055,0.00013499,2]
[331702676,1720665038739,-5181.86100945,0.00013499,2]
[331702678,1720665038749,-4600.0,0.000135,4]
[331702680,1720665038758,-155.98483515,0.00013516,2]
[331702682,1720665038768,-900.0,0.000136,4]
[331702684,1720665038777,-250.0,0.00013699,2]
[331702686,1720665038787,-649.47506026,0.00013699,2]
[331702778,1720665040580,-197.94493974,0.00013699,2]
[331702779,1720665040590,-587.39033429,0.000137,5]
[331702780,1720665040601,-312.60966571,0.000137,5]
[331702781,1720665040610,-125.2630595,0.0001372,2]
[331702782,1720665040621,-979.72584836,0.0001372,2]
[331702783,1720665040631,-2705.51974962,0.0001379,2]
[331702784,1720665040642,-2347.31070634,0.000138,2]
[331702785,1720665040756,-685.28743625,0.000138,2]
[331702786,1720665040929,-1811.90938064,0.000138,2]
[331702864,1720665043470,-3680.30187106,0.000138,2]
[331702865,1720665043483,-13971.24960571,0.000138,2]
[331702866,1720665043493,-288.15423318,0.000138,2]
[331702867,1720665043502,-900.0,0.000138,5]
[331702868,1720665043512,-288.15423311,0.00013811,2]
[331702869,1720665043521,-288.15423311,0.00013822,2]
[331702870,1720665043530,-288.15423311,0.00013833,2]
[331702871,1720665043540,-288.15423311,0.00013844,2]
[331702872,1720665043549,-288.15423311,0.00013856,2]
[331702873,1720665043558,-288.15423311,0.00013867,2]
[331702874,1720665043568,-288.15423311,0.00013878,2]
[331702875,1720665043578,-288.15423311,0.00013889,2]
[331702876,1720665043588,-155.26575044,0.00013889,2]
[331702877,1720665043598,-1992.52,0.0001389,2]
[331702878,1720665043608,-1992.52,0.0001389,2]
[331702879,1720665043618,-1220.30442041,0.0001389,2]
[331702880,1720665043629,-222.85,0.0001389,3]
[331702881,1720665043640,-332.15190155,0.00013895,2]
[331702882,1720665043649,-209.54583652,0.00013895,2]
[331702883,1720665043659,-490.07767787,0.00013899,2]
[331702884,1720665043670,-1782.99,0.00013899,2]
[331702885,1720665043679,-529.29,0.00013899,2]
[331702886,1720665043689,-500.0,0.00013899,2]
[331702887,1720665043699,-1683.37,0.00013899,2]
[331702888,1720665043710,-455.83631991,0.00013899,2]
[331702889,1720665043725,-44.16368009,0.00013899,2]
[331702890,1720665043736,-489.31786562,0.00013899,2]
[331702892,1720665043747,-10.68213438,0.00013899,2]
[331702894,1720665043756,-1033.56,0.00013899,2]
[331702895,1720665043766,-302.75786562,0.00013899,2]
[331702897,1720665045769,-313.26849452,0.00013899,2]
[331702898,1720665045779,-500.0,0.00013899,2]
[331702899,1720665045788,-616.02636014,0.00013899,2]
[331702900,1720665045797,-624.9314,0.000139,2]
[331702901,1720665045806,-3761.553,0.000139,2]
[331702902,1720665045824,-3384.0569,0.000139,2]
[331702903,1720665045833,-35581.77306183,0.000139,2]
[331702910,1720665047508,-181997.25443817,0.000139,2]
[331702911,1720665047519,-2506.4281,0.000139,2]
[331702912,1720665047529,-900.0,0.000139,5]
[331702913,1720665047538,-288.15423311,0.000139,2]
[331702914,1720665047547,-7500.0,0.000139,2]
[331702915,1720665047556,-195.67801779,0.000139,2]
[331702916,1720665047565,-198.36196005,0.000139,2]
[331702917,1720665047576,-479.56603185,0.000139,2]
[331702918,1720665047585,-1220.30442041,0.000139,2]
[331702919,1720665047594,-1782.99,0.00013954,2]
[331702920,1720665047603,-529.29,0.00013954,2]
[331702921,1720665047612,-500.0,0.00013954,2]
[331702922,1720665047622,-1683.37,0.00013954,2]
[331702923,1720665047631,-500.0,0.00013954,2]
[331702924,1720665047643,-500.0,0.00013954,2]
[331702925,1720665047652,-1033.56,0.00013954,2]
[331702926,1720665047661,-500.0,0.00013954,2]
[331702927,1720665047670,-2000.0,0.00013973,3]
[331702928,1720665047680,-1992.52,0.0001398,2]
[331702929,1720665047689,-1992.52,0.0001398,2]
[331702930,1720665047698,-1992.52,0.0001398,2]
[331702931,1720665047707,-155.11874292,0.00013989,2]
[331702932,1720665047716,-245717.10591352,0.0001399,2]
[331702933,1720665047736,-950.1426949,0.0001399,2]
[331702934,1720665047751,-1161.772664,0.0001399,2]
[331702935,1720665047762,-1145.85767794,0.0001399,2]
[331702936,1720665116865,417.93936495,0.00011442,2]
[331702937,1720665164762,167.071111,0.00025,60]
[331702940,1720665348788,500.0,0.00011442,2]
[331702941,1720665349120,500.0,0.00011442,2]
[331702942,1720665349591,500.0,0.00011442,2]
[331702943,1720665349919,845.0,0.00011442,2]
[331702944,1720665375180,410.59,0.00011106,2]
[331702950,1720665722108,13297.312654,0.00011,2]
[331702962,1720666012537,390.06,0.00011025,2]
[331702973,1720666053749,155.0,0.00011199,2]
[331702990,1720666223368,156.0,0.00027,120]
[331702991,1720666232542,-190.105495,0.000126,2]
[331702992,1720666232552,-136.25416509,0.00012936,2]
[331702997,1720666233463,-113.74583491,0.00012936,2]
[331702998,1720666233473,-652.0,0.00012943,2]
[331703000,1720666233484,-166.96,0.00012967,2]
[331703002,1720666233494,-200.0,0.0001297,2]
[331703003,1720666233504,-371.02794291,0.00013128,2]
[331703004,1720666233514,-169.28,0.00013204,2]
[331703005,1720666233523,-390.06,0.00013289,2]
[331703006,1720666233533,-159.01935,0.00013452,2]
[331703007,1720666233543,-227.30730583,0.00013472,2]
[331703008,1720666233552,-155.37742479,0.00013516,2]
[331703009,1720666233562,-250.0,0.00013699,2]
[331703010,1720666233572,-423.71,0.00013699,2]
[331703011,1720666233581,-300.0,0.00013735,2]
[331703012,1720666233591,-12794.43888534,0.00013736,2]
[331703013,1720666233600,-150.0,0.00013799,2]
[331703014,1720666233609,-24886.11423841,0.000138,2]
[331703015,1720666238540,-3338.01606159,0.000138,2]
[331703016,1720666238550,-1262.19259,0.0001385,2]
[331703017,1720666238559,-1634.41,0.00013879,2]
[331703018,1720666238569,-500.0,0.00013879,2]
[331703020,1720666238580,-1543.09,0.00013879,2]
[331703022,1720666238591,-947.43,0.00013879,2]
[331703024,1720666238601,-500.0,0.00013879,2]
[331703026,1720666238610,-33383.16386763,0.0001388,2]
[331703028,1720666238624,-1086.4998,0.0001388,2]
[331703030,1720666238636,-3742.70217563,0.0001388,2]
[331703031,1720666238792,-360.86093302,0.0001388,2]
[331703032,1720666238804,-1356.00596654,0.0001388,2]
[331703033,1720666238816,-534.02114835,0.0001388,2]
[331703071,1720666240711,-499.50806159,0.0001388,2]
[331703660,1720666247135,-28283.13599495,0.0001388,2]
[331703661,1720666247146,-2321.7955,0.0001388,2]
[331703662,1720666247158,-11671.2,0.0001388,2]
[331703663,1720666247169,-69155.89977126,0.0001388,2]
[331703664,1720666560864,373.49,0.00011205,2]
[331703667,1720666903841,949.55138329,0.00011199,2]
[331703671,1720666976957,1000.0,0.00012,2]
[331703680,1720667172075,354.81,0.00010991,2]
[331703681,1720667190299,570.42645155,0.00011199,2]
[331703693,1720667348614,879.25,0.00027,120]
[331703724,1720667431795,-11617.4,0.00012886,2]
[331703725,1720667432119,-1136.72892,0.00012886,2]
[331703743,1720667437873,-9259.99108,0.00012886,2]
[331703744,1720667437883,-169.29,0.00012995,2]
[331703745,1720667437892,-1250.0,0.00013,2]
[331703746,1720667437902,-1016.957796,0.00013,3]
[331703747,1720667437912,-250.0,0.00013002,2]
[331703748,1720667437922,-198.25,0.00013159,2]
[331703749,1720667437931,-1000.0,0.00013194,2]
[331703750,1720667437941,-354.81,0.00013255,2]
[331703751,1720667437950,-150.0,0.00013499,2]
[331703752,1720667437964,-276766.4,0.000135,2]
[331703753,1720667437974,-300.0,0.00013516,2]
[331703754,1720667437983,-300.0,0.00013543,2]
[331703755,1720667437993,-1478.79,0.00013698,2]
[331703756,1720667438003,-211.85,0.00013699,2]
[331703757,1720667438012,-549.0,0.00013719,2]
[331703758,1720667438022,-1051.82716,0.0001374,2]
[331703759,1720667438031,-1478.79,0.00013753,2]
[331703760,1720667438041,-1681.672,0.00013799,2]
[331703761,1720667438051,-369.971,0.00013799,2]
[331703762,1720667438062,-4118.252,0.00013799,2]
[331703763,1720667438072,-1478.79,0.00013808,2]
[331703764,1720667438082,-1478.79,0.00013863,2]
[331703765,1720667438092,-500.0,0.00013879,2]
[331703766,1720667438102,-500.0,0.00013879,2]
[331703767,1720667438111,-500.0,0.00013879,2]
[331703768,1720667438121,-43344.88449759,0.0001388,2]
[331703769,1720667438136,-3212.6229059,0.0001388,2]
[331703770,1720667438148,-1664.75786312,0.0001388,2]
[331703771,1720667438163,-28519.78604438,0.0001388,2]
[331703849,1720667440208,-2063.14108,0.0001388,2]
[331703850,1720667440220,-51528.23733544,0.0001388,2]
[331703851,1720667440229,-155.0,0.0001388,2]
[331703852,1720667440238,-319.7106879,0.000139,2]
[331703853,1720667440248,-1478.79,0.00013917,2]
[331703854,1720667440257,-500.0,0.00013934,2]
[331703855,1720667440266,-500.0,0.00013934,2]
[331703856,1720667440275,-500.0,0.00013934,2]
[331703857,1720667440285,-278.0,0.0001395,2]
[331703858,1720667440294,-1478.79,0.00013972,2]
[331703859,1720667440305,-500.0,0.00013989,2]
[331703860,1720667440314,-500.0,0.00013989,2]
[331703861,1720667440324,-500.0,0.00013989,2]
[331703862,1720667440333,-1025.12104964,0.0001399,2]
[331703863,1720667440342,-2251.0,0.0001399,2]
[331703864,1720667440351,-1566.31,0.00013998,2]
[331703865,1720667440360,-500.0,0.00013998,2]
[331703866,1720667440373,-11883.2762861,0.00013998,2]
[331703867,1720667440382,-85097.9391579,0.00013998,2]
[331703868,1720667440391,-907.95,0.00013998,2]
[331703869,1720667440400,-500.0,0.00013998,2]
[331703870,1720667440410,-1470.16732495,0.00013999,5]
[331703871,1720667440419,-2251.0,0.00013999,2]
[331703872,1720667440428,-1318.47881185,0.00013999,5]
[331703873,1720667440437,-151.0,0.00013999,2]
[331703874,1720667440447,-213.0,0.00013999,2]
[331703875,1720667440456,-260.678,0.00013999,2]
[331703876,1720667440465,-151.153,0.00013999,2]
[331703877,1720667440474,-190.924,0.00013999,2]
[331703878,1720667440483,-162.0,0.00013999,2]
[331703879,1720667440492,-163.627,0.00013999,2]
[331703880,1720667440501,-161.573,0.00013999,2]
[331703881,1720667440511,-197.271,0.00013999,2]
[331703882,1720667440520,-150.093,0.00013999,2]
[331703883,1720667440530,-246.67,0.00013999,2]
[331703884,1720667440539,-170.948,0.00013999,2]
[331703885,1720667440548,-150.281,0.00013999,2]
[331703886,1720667440558,-202.932,0.00013999,2]
[331703887,1720667440568,-206.254,0.00013999,2]
[331703888,1720667440578,-245.474,0.00013999,2]
[331703889,1720667440588,-169.329,0.00013999,2]
[331703891,1720667440598,-1802.703,0.00013999,2]
[331703893,1720667440608,-1830.0,0.00013999,2]
[331703895,1720667440617,-361.0,0.00013999,2]
[331703897,1720667440627,-1302.679,0.00013999,2]
[331703899,1720667440636,-167.558,0.00013999,2]
[331703901,1720667440645,-452.426,0.00013999,2]
[331703903,1720667440654,-619.94,0.00013999,2]
[331703905,1720667440664,-819.859,0.00013999,2]
[331703907,1720667440673,-444.0,0.00013999,2]
[331703909,1720667440683,-150.334,0.00013999,2]
[331703911,1720667440692,-1253.0,0.00013999,2]
[331703913,1720667440702,-2378.0,0.00013999,2]
[331703915,1720667440711,-283.896,0.00013999,2]
[331703916,1720667440720,-1988.528,0.00013999,2]
[331703918,1720667440729,-3277.0,0.00013999,2]
[331703920,1720667440738,-558.86761817,0.00013999,2]
[331703922,1720667440747,-144970.10072343,0.00014,2]
[331703924,1720667440757,-1445004.68353315,0.00014,2]
[331703926,1720667440766,-3627638.83209194,0.00014,2]
[331703928,1720667440775,-3358996.77314483,0.00014,2]
[331703931,1720667440789,-258253.66717703,0.00014,2]
[331703933,1720667440802,-78896.43625104,0.00014,2]
[331703935,1720667440814,-852.83909294,0.00014,2]
[331704326,1720667444312,-3097.11981078,0.00014,2]
[331704328,1720667444325,-304088.829,0.00014,2]
[331704330,1720667444337,-4696.11387274,0.00014,2]
[331704430,1720667447491,-4515.68926681,0.00014,2]
[331704431,1720667447502,-9052.33547309,0.00014,2]
[331704438,1720667574349,417.93936495,0.00011451,2]
[331704439,1720667636059,252657.98682673,0.00011451,2]
[331704443,1720667749993,369.4,0.00010942,2]
[331704447,1720667896498,749.0,0.00027,120]
[331704453,1720668010406,723.0,0.00025,60]
[331704466,1720668310190,350.93,0.00010802,2]
[331704514,1720668633750,-729.53271559,0.00012309,2]
[331704537,1720668634397,-884.42909841,0.00012309,2]
[331704538,1720668634414,-401.50495027,0.00012335,2]
[331704539,1720668634424,-982.0,0.00012371,2]
[331704540,1720668634434,-250.0,0.00012435,2]
[331704541,1720668634443,-300.0,0.00012565,2]
[331704542,1720668634453,-59.41599132,0.00012565,2]
[331704543,1720668634465,-90.58400868,0.00012565,2]
[331704544,1720668634474,-17211.01599132,0.00012566,2]
[331704545,1720668634500,-1228.11482033,0.00012566,2]
[331704546,1720668634513,-1018.39602595,0.00012566,2]
[331704547,1720668634525,-2268.26683025,0.00012566,2]
[331704548,1720668634536,-900.0,0.00012566,2]
[331704565,1720668639265,-7272.65439133,0.00012566,2]
[331704568,1720668639540,-10313.55194082,0.00012566,2]
[331704569,1720668639550,-158.6,0.00012726,2]
[331704570,1720668639561,-500.0,0.00012727,2]
[331704571,1720668639572,-219.22015808,0.00012739,2]
[331704572,1720668639584,-780.77984192,0.00012739,2]
[331704573,1720668639594,-694.73,0.00012759,2]
[331704574,1720668639604,-169.93,0.00012783,2]
[331704575,1720668639614,-250.0,0.00012792,2]
[331704576,1720668639624,-173.68,0.00012964,2]
[331704577,1720668639634,-1250.0,0.00013,2]
[331704578,1720668639644,-350.93,0.00013066,2]
[331704579,1720668639655,-1709.18,0.00013341,2]
[331704580,1720668639665,-528.56,0.00013378,2]
[331704581,1720668639675,-150.0,0.00013378,2]
[331704582,1720668639684,-354.85,0.00013378,2]
[331704583,1720668639695,-500.0,0.000134,2]
[331704584,1720668639705,-1146.0,0.00013448,2]
[331704585,1720668639715,-428.73,0.00013478,2]
[331704586,1720668639725,-150.0,0.00013478,2]
[331704587,1720668639735,-150.98,0.00013478,2]
[331704588,1720668639745,-152.24,0.00013478,2]
[331704589,1720668639755,-355.21,0.00013478,2]
[331704590,1720668639766,-151.96,0.00013478,2]
[331704591,1720668639775,-529.01,0.00013478,2]
[331704592,1720668639790,-301.49,0.00013478,2]
[331704593,1720668639800,-168.38,0.00013478,2]
[331704594,1720668639810,-319.65,0.00013478,2]
[331704595,1720668639820,-150.0,0.00013478,2]
[331704597,1720668639831,-529.01,0.00013478,2]
[331704599,1720668639841,-150.0,0.00013478,2]
[331704602,1720668639851,-150.0,0.00013478,2]
[331704604,1720668639861,-165.03,0.00013478,2]
[331704607,1720668639871,-424.8,0.00013478,2]
[331704610,1720668639881,-355.21,0.00013478,2]
[331704612,1720668639891,-424.8,0.00013478,2]
[331704614,1720668639901,-150.0,0.00013478,2]
[331704616,1720668639911,-355.21,0.00013478,2]
[331704618,1720668639921,-150.0,0.00013478,2]
[331704620,1720668639931,-165.03,0.00013478,2]
[331704623,1720668639942,-150.0,0.00013478,2]
[331704625,1720668639953,-150.0,0.00013478,2]
[331704626,1720668639965,-150.0,0.00013478,2]
[331704628,1720668639975,-255.0,0.00013659,2]
[331704631,1720668639986,-250.0,0.00013699,2]
[331704633,1720668639995,-500.16,0.00013699,2]
[331704635,1720668640007,-12775.20479459,0.00013736,2]
[331704637,1720668640017,-155.83998324,0.00013889,2]
[331704639,1720668640028,-1473.632,0.0001389,2]
[331704641,1720668640039,-233.40492891,0.00013898,2]
[331704643,1720668640049,-160.39965838,0.00013898,2]
[331704645,1720668640060,-233.40492882,0.00013898,2]
[331704648,1720668640071,-233.40492882,0.00013898,2]
[331704650,1720668640082,-233.40492882,0.00013899,2]
[331704652,1720668640093,-233.40492882,0.00013899,2]
[331704654,1720668640103,-233.40492882,0.00013899,2]
[331704656,1720668640114,-233.40492882,0.00013899,2]
[331704658,1720668640125,-233.40492882,0.000139,2]
[331704660,1720668640135,-233.40492882,0.000139,2]
[331704662,1720668640146,-4046.8911,0.000139,2]
[331704665,1720668640156,-399.6147,0.000139,2]
[331704667,1720668640166,-1000.0,0.000139,2]
[331704668,1720668640176,-7500.0,0.000139,2]
[331704670,1720668640186,-233.40492882,0.000139,2]
[331704672,1720668640196,-329.81328524,0.000139,2]
[331704674,1720668640206,-187.26252945,0.000139,2]
[331704676,1720668640215,-1714.679684,0.00013911,2]
[331704678,1720668640226,-306.0344,0.0001393,2]
[331704680,1720668640236,-1271.745476,0.00013973,2]
[331704682,1720668640246,-1501.05,0.00013989,2]
[331704684,1720668640257,-500.0,0.00013989,2]
[331704685,1720668640267,-500.0,0.00013989,2]
[331704686,1720668640278,-500.0,0.00013989,2]
[331704687,1720668640288,-1109.09,0.00013989,2]
[331704688,1720668640299,-870.12,0.00013989,2]
[331704689,1720668640308,-500.0,0.00013989,2]
[331704690,1720668640319,-500.0,0.00013989,2]
[331704691,1720668640329,-71143.24087238,0.0001399,2]
[331704692,1720668640346,-3247.0,0.0001399,2]
[331704693,1720668640358,-448.64,0.0001399,2]
[331704694,1720668640370,-1098.9999,0.0001399,2]
[331704695,1720668640383,-1010.92811315,0.0001399,2]
[331704696,1720668640395,-116804.16598938,0.0001399,2]
[331704697,1720668640406,-34829.42940361,0.00013998,2]
[331704698,1720668640434,-1029.28,0.00012435,2]
[331704699,1720668640446,-34.34414582,0.00013998,2]
[331704700,1720668640459,-1168.91354638,0.00013998,2]
[331704701,1720668640471,-1659.99434364,0.00013998,2]
[331704702,1720668640483,-2040.00565636,0.00013998,2]
[331704703,1720668640494,-1869.7443923,0.00013998,2]
[331704704,1720668640508,-3578.13546545,0.00013998,2]
[331704705,1720668640524,-741.079999,0.00013998,2]
[331704706,1720668640535,-1642.8995,0.00013998,2]
[331704707,1720668640548,-6060.40871714,0.00013998,2]
[331704708,1720668640558,-1253.0,0.00013999,2]
[331704709,1720668640568,-150.0,0.00013999,2]
[331704710,1720668640577,-2378.0,0.00013999,2]
[331704711,1720668640587,-2439.685,0.00013999,2]
[331704712,1720668640597,-549.0,0.00013999,2]
[331704713,1720668640606,-1826.386,0.00013999,2]
[331704714,1720668640616,-1251.0,0.00013999,2]
[331704715,1720668640625,-1660.0,0.00013999,2]
[331704716,1720668640635,-361.0,0.00013999,2]
[331704717,1720668640645,-586.0,0.00014,2]
[331704718,1720668640655,-36709.78028286,0.00014,2]
[331704719,1720668640667,-252.00214189,0.00014,2]
[331704720,1720668640687,-1286.6437952,0.00014,2]
[331704721,1720668640698,-41167.66283741,0.00014,2]
[331704722,1720668640710,-51129.43034373,0.00014,2]
[331704723,1720668640719,-122571.19656424,0.00014,2]
[331704724,1720668640731,-133622.95458009,0.00014,2]
[331704725,1720668640743,-3856.33934384,0.00014,2]
[331704726,1720668640758,-6000.0,0.00014,2]
[331704728,1720668640770,-667.538761,0.00014,2]
[331704731,1720668640787,-74839.09920751,0.00014,2]
[331704733,1720668640799,-134367.21758748,0.00014,2]
[331704735,1720668640810,-1011.84828488,0.00014,2]
[331704737,1720668640822,-529.37778124,0.00014,2]
[331704740,1720668640835,-1131.59228596,0.00014,2]
[331704743,1720668640858,-487.61748023,0.00014,2]
[331704745,1720668640870,-496.07624443,0.00014,2]
[331705053,1720668643807,-153.26472077,0.00013999,2]
[331705063,1720668643901,-699.76028913,0.00014,2]
[331705066,1720668643913,-2677.1854726,0.00014,2]
[331705068,1720668643924,-572.21,0.00014,2]
[331705070,1720668643936,-13289.23339859,0.00014,2]
[331705072,1720668643949,-2942.80104,0.00014,2]
[331705075,1720668643963,-449.834,0.00014,2]
[331705148,1720668647224,-6584.2221912,0.00014,2]
[331705149,1720668647280,-3963.32370779,0.00014,2]
[331705150,1720668647292,-144186.15480075,0.00014,2]
[331705151,1720668647305,-2746.08080776,0.00014,2]
[331705152,1720668647316,-5307.0295666,0.00014,2]
[331705153,1720668647326,-2677.990559,0.00014,2]
[331705154,1720668647339,-793.97883136,0.00014,2]
[331705180,1720668669704,4300.0,0.00025,60]
[331705181,1720668670047,417.93936495,0.00011459,2]
[331705183,1720668710723,4300.0,0.00025,60]
[331705185,1720668734671,3928.99557326,0.00025,60]
[331705186,1720668755150,17871.53252268,0.00011459,2]
[331705187,1720668755179,86446.71463035,0.00011459,2]
[331705189,1720668762798,687.1056953,0.00011459,2]
[331705198,1720668993878,530.94,0.00010804,2]
[331705204,1720669205006,721.02350962,0.00011199,2]
[331705205,1720669213987,530.74208182,0.00011199,2]
[331705206,1720669237245,526.0847204,0.00011199,2]